bitfinex/quotes_SOLUSD_20220119
["timestamp","ask_amount","ask_price","bid_price","bid_amount"]
[1642582202819,52.09988104,133.73,133.66,11.2221]
[1642582203019,52.09988104,133.73,133.67,0.25]
[1642582203220,49.10788104,133.73,133.67,2.991]
[1642582203423,0.25,133.72,133.67,2.991]
[1642582204021,11.473,133.72,133.67,2.991]
[1642582204824,2.991,133.71,133.67,2.991]
[1642582205225,0.25,133.7,133.67,2.991]
[1642582205624,0.25,133.7,133.68,6.06439994]
[1642582206326,0.25,133.71,133.68,6.06439994]
[1642582206526,44.52347691,133.7,133.68,6.06439994]
[1642582206924,2.991,133.73,133.68,6.06439994]
[1642582207924,45.34418124,133.72,133.68,6.06439994]
[1642582208126,45.59418124,133.72,133.68,6.06439994]
[1642582208426,56.81768124,133.72,133.68,6.06439994]
[1642582211030,2.991,133.71,133.68,6.06439994]
[1642582212733,0.25,133.7,133.68,6.06439994]
[1642582213535,2.991,133.71,133.68,6.06439994]
[1642582213734,59.55868124,133.72,133.68,6.06439994]
[1642582213936,0.25,133.71,133.68,6.06439994]
[1642582219475,11.4739,133.71,133.68,6.06439994]
[1642582219972,2.991,133.7,133.68,6.06439994]
[1642582220173,40.61675514,133.69,133.68,6.06439994]
[1642582221074,2.991,133.7,133.68,6.06439994]
[1642582221276,0.25,133.71,133.68,6.06439994]
[1642582222174,38.73833636,133.71,133.68,6.06439994]
[1642582222374,0.25,133.71,133.68,6.06439994]
[1642582222874,2.991,133.72,133.68,6.06439994]
[1642582223274,0.25,133.71,133.68,6.06439994]
[1642582223675,3.241,133.71,133.68,6.06439994]
[1642582225076,2.991,133.71,133.68,6.06439994]
[1642582225877,50.71048189,133.72,133.68,6.06439994]
[1642582226777,0.25,133.71,133.68,6.06439994]
[1642582226981,4.32831612,133.71,133.68,6.06439994]
[1642582227178,4.32831612,133.71,133.62,26.8482]
[1642582227378,4.32831612,133.71,133.65,6.0]
[1642582227578,8.31580865,133.7,133.63,6.0]
[1642582227778,11.30780865,133.7,133.63,6.0]
[1642582227977,2.992,133.7,133.63,17.2237]
[1642582228477,2.992,133.7,133.64,41.89911393]
[1642582228877,2.992,133.7,133.65,6.0]
[1642582229080,37.0159193,133.69,133.65,6.0]
[1642582229477,37.0159193,133.69,133.63,6.0]
[1642582229680,37.0159193,133.69,133.63,6.25]
[1642582231280,37.0159193,133.69,133.64,2.992]
[1642582231481,37.0159193,133.69,133.63,20.4645]
[1642582231682,37.0159193,133.69,133.65,6.0]
[1642582231880,37.0159193,133.69,133.63,20.4645]
[1642582233781,37.0159193,133.69,133.63,8.992]
[1642582234684,3.242,133.68,133.63,2.992]
[1642582234887,9.09421002,133.68,133.63,2.992]
[1642582235085,20.32041002,133.68,133.59,23.336]
[1642582236286,16.2420939,133.68,133.59,23.336]
[1642582238087,1.7738939,133.67,133.59,23.336]
[1642582238387,11.2302,133.64,133.56,2.993]
[1642582238586,11.2302,133.64,133.53,2.993]
[1642582238587,2.994,133.63,133.53,2.993]
[1642582238794,2.994,133.63,133.5,51.7962]
[1642582238795,54.17211174,133.62,133.5,51.7962]
[1642582238988,2.994,133.61,133.5,48.8022]
[1642582239187,3.244,133.61,133.5,48.8022]
[1642582239388,6.0,133.6,133.5,48.8022]
[1642582239588,2.995,133.59,133.5,48.8022]
[1642582239789,3.245,133.59,133.5,48.8022]
[1642582240087,43.39748739,133.58,133.5,87.9459822]
[1642582240291,3.245,133.57,133.5,87.9459822]
[1642582240492,14.4818,133.57,133.5,87.9459822]
[1642582241292,14.4818,133.57,133.5,48.8022]
[1642582243899,14.4818,133.57,133.49,42.79301883]
[1642582244098,14.4818,133.57,133.47,2.995]
[1642582244400,14.4818,133.57,133.48,6.0]
[1642582244599,14.4818,133.57,133.47,2.995]
[1642582245098,14.4818,133.57,133.47,52.43227221]
[1642582245298,16.8318,133.57,133.47,52.43227221]
[1642582245507,6.0,133.56,133.47,52.43227221]
[1642582245706,11.2388,133.54,133.47,49.43727221]
[1642582245904,2.996,133.53,133.47,49.43727221]
[1642582246104,3.246,133.53,133.47,49.43727221]
[1642582246303,2.996,133.54,133.47,49.43727221]
[1642582246703,0.25,133.53,133.47,49.43727221]
[1642582246903,11.4888,133.53,133.47,49.43727221]
[1642582248504,11.4888,133.53,133.47,60.67487221]
[1642582249508,51.87875806,133.53,133.47,60.67487221]
[1642582250709,0.25,133.53,133.47,60.67487221]
[1642582251105,0.25,133.53,133.47,49.43727221]
[1642582251307,0.25,133.54,133.47,49.43727221]
[1642582251731,40.93402394,133.54,133.47,49.43727221]
[1642582251933,11.2385,133.53,133.47,49.43727221]
[1642582252133,14.2345,133.53,133.47,49.43727221]
[1642582254535,14.2345,133.53,133.47,60.67487221]
[1642582254738,14.2345,133.53,133.48,6.0]
[1642582254934,11.2385,133.53,133.48,6.0]
[1642582255835,14.2345,133.53,133.48,6.0]
[1642582256036,14.2345,133.53,133.47,6.0]
[1642582256333,14.2345,133.53,133.47,6.25]
[1642582256535,11.4894,133.52,133.46,23.4016]
[1642582256734,47.08594409,133.51,133.46,23.4016]
[1642582256934,50.08194409,133.51,133.46,23.4016]
[1642582257135,0.25,133.5,133.46,23.4016]
[1642582258035,11.4921,133.5,133.46,23.4016]
[1642582258235,11.2421,133.5,133.46,23.4016]
[1642582260238,58.32594409,133.51,133.46,23.4016]
[1642582260639,58.32594409,133.51,133.44,48.0973]
[1642582260839,58.32594409,133.51,133.45,6.0]
[1642582260840,3.246,133.5,133.45,6.0]
[1642582261238,48.92115574,133.48,133.4,2.996]
[1642582261439,48.92115574,133.48,133.39,77.417]
[1642582261440,2.997,133.47,133.39,77.417]
[1642582261639,3.247,133.47,133.39,22.7016]
[1642582261842,3.247,133.47,133.35,27.2309]
[1642582262039,3.247,133.47,133.36,30.6119]
[1642582262240,11.2441,133.46,133.36,30.6119]
[1642582262441,52.19191575,133.45,133.36,24.6119]
[1642582262740,10.8,133.44,133.34,2.998]
[1642582263039,10.8,133.44,133.33,22.596]
[1642582263040,2.998,133.43,133.33,22.596]
[1642582263241,10.8,133.42,133.33,22.596]
[1642582263441,11.25,133.4,133.33,22.596]
[1642582263643,2.999,133.39,133.33,22.596]
[1642582263840,3.249,133.39,133.34,6.0]
[1642582264043,2.999,133.4,133.34,6.0]
[1642582264243,2.998,133.41,133.34,6.0]
[1642582264643,0.25,133.4,133.34,6.0]
[1642582264840,11.2493,133.4,133.34,6.0]
[1642582265042,11.2493,133.4,133.35,48.56086536]
[1642582265443,48.99713666,133.41,133.35,48.56086536]
[1642582265644,13.799,133.42,133.35,48.56086536]
[1642582265846,11.2476,133.42,133.35,48.56086536]
[1642582266745,57.37074116,133.42,133.35,48.56086536]
[1642582266944,57.37074116,133.42,133.34,6.0]
[1642582267145,14.2468,133.41,133.34,6.0]
[1642582267343,11.2488,133.41,133.34,8.999]
[1642582267745,11.2488,133.41,133.37,0.41420599]
[1642582269344,2.998,133.4,133.37,0.41420599]
[1642582269544,2.998,133.4,133.38,3.03219997]
[1642582269545,52.98696696,133.39,133.38,3.03219997]
[1642582269744,53.23696696,133.39,133.37,0.41420599]
[1642582269944,52.98696696,133.39,133.37,0.41420599]
[1642582270446,52.98696696,133.39,133.3,34.7654]
[1642582270645,11.253,133.37,133.32,2.998]
[1642582270845,2.999,133.36,133.28,27.4649]
[1642582271145,0.25,133.36,133.28,27.4649]
[1642582271346,3.0,133.37,133.28,24.4659]
[1642582271548,35.92498958,133.36,133.28,62.81738644]
[1642582272044,35.92498958,133.36,133.29,6.0]
[1642582272447,47.17798958,133.36,133.29,17.2523]
[1642582272847,47.17798958,133.36,133.28,24.4659]
[1642582273051,3.0,133.35,133.28,24.4659]
[1642582273248,3.0,133.35,133.25,100.835]
[1642582273449,3.0,133.35,133.25,124.612]
[1642582273647,35.62254045,133.34,133.25,162.5350215]
[1642582274051,35.62254045,133.34,133.26,6.0]
[1642582274453,46.87734045,133.34,133.27,11.504]
[1642582274653,46.87734045,133.34,133.28,6.0]
[1642582276355,46.3868289,133.32,133.26,6.0]
[1642582277658,49.3868289,133.32,133.26,6.0]
[1642582277860,46.3868289,133.32,133.26,6.0]
[1642582278061,46.85456098,133.3,133.26,6.0]
[1642582278863,16.85456098,133.3,133.26,6.0]
[1642582280667,3.001,133.33,133.26,6.0]
[1642582280866,3.0,133.35,133.26,6.0]
[1642582281065,3.25,133.35,133.26,6.0]
[1642582281671,11.2566,133.32,133.27,43.70062053]
[1642582281872,54.57157402,133.32,133.27,43.70062053]
[1642582282067,54.57157402,133.32,133.28,6.0]
[1642582282268,46.31497402,133.32,133.28,6.0]
[1642582282468,0.25,133.31,133.28,6.0]
[1642582282669,5.998,133.3,133.27,6.0]
[1642582282871,5.998,133.3,133.23,28.6894]
[1642582283070,2.998,133.3,133.23,31.6904]
[1642582283370,43.07948973,133.29,133.24,42.17620144]
[1642582283569,43.07948973,133.29,133.25,6.0]
[1642582283769,0.25,133.31,133.25,6.0]
[1642582283970,3.251,133.31,133.25,6.0]
[1642582284173,3.001,133.31,133.25,6.0]
[1642582284570,3.001,133.33,133.26,0.25]
[1642582284870,49.12821336,133.34,133.27,9.00427]
[1642582285071,46.12821336,133.34,133.28,40.88438366]
[1642582285371,46.12821336,133.34,133.28,41.13438366]
[1642582285670,46.12821336,133.34,133.3,49.59296988]
[1642582285869,46.12821336,133.34,133.31,11.2518]
[1642582286071,11.2525,133.37,133.31,11.5018]
[1642582286270,11.2525,133.37,133.32,3.06639993]
[1642582287276,3.249,133.36,133.32,3.06639993]
[1642582287874,40.56526504,133.35,133.32,3.06639993]
[1642582288077,2.998,133.34,133.32,3.06639993]
[1642582288276,6.248,133.34,133.32,3.06639993]
[1642582288476,6.248,133.34,133.32,3.03219997]
[1642582289075,6.248,133.34,133.29,23.4067]
[1642582289287,45.39238267,133.33,133.29,23.4067]
[1642582289875,45.39238267,133.33,133.28,28.6155]
[1642582291978,0.25,133.32,133.28,28.6155]
[1642582292178,3.25,133.32,133.28,28.6155]
[1642582292580,3.25,133.32,133.28,6.0]
[1642582292783,3.0,133.32,133.28,6.0]
[1642582293000,40.79610959,133.31,133.27,6.0]
[1642582294702,40.79610959,133.31,133.27,17.2549]
[1642582295104,3.0,133.34,133.27,17.2549]
[1642582295306,0.25,133.33,133.27,17.2549]
[1642582295506,3.0,133.34,133.28,75.17]
[1642582295708,3.0,133.36,133.29,11.2532]
[1642582295909,1.42561591,133.38,133.29,26.25612]
[1642582296107,1.42561591,133.38,133.3,72.06399073]
[1642582296506,1.42561591,133.38,133.31,6.0]
[1642582296707,1.42561591,133.38,133.32,0.25]
[1642582297107,1.42561591,133.38,133.32,11.5005]
[1642582297307,1.42561591,133.38,133.33,36.7103353]
[1642582298206,2.999,133.39,133.34,0.25]
[1642582298409,13.799,133.43,133.34,21.8292678]
[1642582298607,2.999,133.43,133.34,51.5765678]
[1642582298808,2.998,133.45,133.35,1.4767178]
[1642582299007,2.998,133.46,133.36,8.998]
[1642582299206,2.998,133.46,133.36,42.9681]
[1642582299607,2.998,133.46,133.37,44.23569223]
[1642582299808,2.998,133.46,133.38,11.495]
[1642582300008,0.25,133.45,133.38,17.495]
[1642582300528,2.998,133.46,133.38,17.495]
[1642582300727,39.57539418,133.47,133.41,11.2429]
[1642582301726,0.25,133.46,133.41,11.2429]
[1642582302327,0.25,133.47,133.41,11.2429]
[1642582302725,1.64241986,133.48,133.43,11.2412]
[1642582302932,1.85193301,133.52,133.43,11.2412]
[1642582302933,2.997,133.51,133.43,11.2412]
[1642582303128,45.24000447,133.51,133.44,57.78291384]
[1642582303328,45.24000447,133.51,133.44,54.53691384]
[1642582303528,45.24000447,133.51,133.45,0.25]
[1642582303730,48.23600447,133.51,133.45,0.25]
[1642582304128,45.24000447,133.51,133.45,0.25]
[1642582305369,45.24000447,133.51,133.44,45.54411384]
[1642582305562,45.24000447,133.51,133.45,11.24]
[1642582305763,48.23600447,133.51,133.45,11.24]
[1642582308665,0.25,133.5,133.44,6.0]
[1642582308865,2.996,133.49,133.41,25.8622]
[1642582309069,2.996,133.49,133.41,22.8662]
[1642582309266,0.25,133.48,133.39,37.4736]
[1642582309465,0.25,133.48,133.39,2.997]
[1642582309466,2.997,133.47,133.39,2.997]
[1642582309669,14.2413,133.47,133.39,11.2443]
[1642582309868,0.25,133.46,133.39,11.2443]
[1642582310068,2.997,133.45,133.39,11.2443]
[1642582310272,0.25,133.46,133.39,11.2443]
[1642582310874,11.4956,133.46,133.38,50.36174727]
[1642582311075,37.37814285,133.45,133.39,0.25]
[1642582311474,37.37814285,133.45,133.38,11.2458]
[1642582311671,2.998,133.44,133.38,11.2458]
[1642582311872,40.37614285,133.45,133.39,0.25]
[1642582312072,40.37614285,133.45,133.39,11.4949]
[1642582312274,40.37614285,133.45,133.39,0.25]
[1642582312571,37.37814285,133.45,133.39,0.25]
[1642582314071,37.37814285,133.45,133.39,11.4949]
[1642582317675,37.37814285,133.45,133.39,11.2449]
[1642582317877,48.62384285,133.45,133.39,11.2449]
[1642582318380,48.62384285,133.45,133.4,0.25]
[1642582318577,48.62384285,133.45,133.39,11.2449]
[1642582318778,48.62384285,133.45,133.38,11.2458]
[1642582318977,48.62384285,133.45,133.38,11.4958]
[1642582319379,48.62384285,133.45,133.38,11.2458]
[1642582319578,0.25,133.44,133.38,11.2458]
[1642582319783,3.248,133.44,133.38,11.2458]
[1642582319981,2.998,133.44,133.38,11.2458]
[1642582320781,37.37814285,133.45,133.39,0.25]
[1642582320982,40.37614285,133.45,133.39,0.25]
[1642582321781,37.37814285,133.45,133.39,0.25]
[1642582321981,37.37814285,133.45,133.38,11.2458]
[1642582322184,3.248,133.44,133.37,8.998]
[1642582322384,3.248,133.44,133.37,2.998]
[1642582322686,6.0,133.43,133.31,45.341]
[1642582322884,2.999,133.42,133.31,48.339]
[1642582323108,11.2514,133.39,133.31,45.341]
[1642582323309,44.33595606,133.38,133.31,45.341]
[1642582323508,51.26395606,133.38,133.3,2.999]
[1642582323708,51.26395606,133.38,133.27,37.5071]
[1642582323709,3.249,133.37,133.27,50.1619]
[1642582324110,27.6514,133.37,133.26,3.0]
[1642582324312,42.69363366,133.35,133.25,3.0]
[1642582324518,9.0,133.34,133.24,103.9413]
[1642582324711,9.0,133.34,133.24,100.9413]
[1642582324712,49.18932456,133.33,133.24,100.9413]
[1642582324912,35.39420891,133.31,133.24,100.9413]
[1642582325113,35.39420891,133.31,133.24,22.6881]
[1642582325719,40.94163694,133.29,133.25,0.25]
[1642582326318,40.5287,133.33,133.25,0.25]
[1642582326515,40.5287,133.33,133.25,6.25]
[1642582326516,3.0,133.33,133.25,6.25]
[1642582327118,0.25,133.32,133.25,6.25]
[1642582327317,48.04534665,133.32,133.25,6.25]
[1642582327517,48.04534665,133.32,133.25,0.25]
[1642582328222,3.001,133.35,133.26,3.001]
[1642582328718,3.001,133.35,133.27,6.0]
[1642582329119,51.87580821,133.34,133.25,23.2519]
[1642582329318,3.25,133.33,133.25,23.2519]
[1642582329721,3.25,133.33,133.25,0.25]
[1642582329920,3.25,133.33,133.21,1.2458385]
[1642582330122,86.1774,133.31,133.21,1.2458385]
[1642582330323,37.5483,133.28,133.15,74.8994]
[1642582330528,94.721,133.27,133.14,3.001]
[1642582330719,20.051,133.27,133.13,0.02968717]
[1642582331122,61.92519839,133.26,133.13,0.02968717]
[1642582331320,37.5553,133.23,133.13,0.02968717]
[1642582331620,37.60887018,133.21,133.13,0.02968717]
[1642582331819,3.253,133.2,133.13,46.34158459]
[1642582332019,47.89155415,133.19,133.14,6.0]
[1642582332920,13.8669,133.2,133.15,43.36489238]
[1642582333124,2.35,133.2,133.16,6.0]
[1642582333321,3.003,133.23,133.16,6.0]
[1642582333523,13.803,133.24,133.17,0.25]
[1642582333722,0.25,133.23,133.17,0.25]
[1642582333922,3.003,133.22,133.16,3.003]
[1642582334122,3.003,133.22,133.13,0.02968717]
[1642582334123,51.3628,133.22,133.13,0.02968717]
[1642582334321,48.3598,133.22,133.13,0.02968717]
[1642582334525,3.003,133.21,133.13,0.02968717]
[1642582334722,25.071,133.21,133.13,0.02968717]
[1642582334923,43.69234491,133.2,133.13,0.02968717]
[1642582335123,42.02425747,133.18,133.13,0.02968717]
[1642582335522,0.25,133.17,133.13,0.02968717]
[1642582335724,3.254,133.17,133.13,0.02968717]
[1642582336524,48.56115588,133.16,133.13,0.02968717]
[1642582336722,2.998,133.15,133.13,0.02968717]
[1642582337324,2.998,133.15,133.14,29.06639993]
[1642582337623,10.8,133.21,133.14,35.06639993]
[1642582337824,3.003,133.22,133.15,0.25]
[1642582338024,38.86235406,133.22,133.16,45.31580197]
[1642582338227,3.003,133.22,133.17,0.25]
[1642582338426,13.803,133.26,133.17,6.25]
[1642582338625,13.803,133.26,133.18,3.001]
[1642582338825,11.2621,133.25,133.19,0.25]
[1642582339026,11.2621,133.25,133.18,11.2621]
[1642582339324,60.20040694,133.25,133.19,40.16456551]
[1642582339526,3.001,133.31,133.2,3.001]
[1642582339727,13.801,133.31,133.21,0.25]
[1642582339925,13.801,133.31,133.21,6.25]
[1642582340129,11.2585,133.3,133.22,11.2585]
[1642582340326,3.001,133.29,133.22,11.2585]
[1642582340530,48.47750507,133.29,133.23,43.52675241]
[1642582340731,3.001,133.3,133.23,43.77675241]
[1642582340928,3.001,133.32,133.23,43.77675241]
[1642582341128,14.2578,133.32,133.23,55.03465241]
[1642582341329,14.2578,133.32,133.23,129.95465241]
[1642582341759,51.234606,133.32,133.23,129.95465241]
[1642582342127,51.234606,133.32,133.23,132.95565241]
[1642582342527,0.25,133.31,133.23,132.95565241]
[1642582343128,51.234606,133.32,133.23,132.95565241]
[1642582343431,48.233606,133.32,133.23,132.95565241]
[1642582343628,0.25,133.31,133.23,132.95565241]
[1642582343829,3.251,133.31,133.23,132.95565241]
[1642582344028,11.2553,133.33,133.23,132.95565241]
[1642582344328,3.001,133.35,133.23,144.01565241]
[1642582344529,3.0,133.36,133.23,145.49237021]
[1642582344829,3.0,133.38,133.23,192.10147021]
[1642582345030,38.87683021,133.37,133.23,192.10147021]
[1642582347432,11.2498,133.4,133.23,192.10147021]
[1642582347635,3.0,133.39,133.23,202.74590509]
[1642582347833,10.8,133.41,133.23,202.74590509]
[1642582348033,3.0,133.4,133.23,202.74590509]
[1642582348335,3.0,133.4,133.23,337.28590509]
[1642582348534,40.59898558,133.39,133.23,337.28590509]
[1642582350335,3.0,133.41,133.23,337.28590509]
[1642582350539,3.0,133.41,133.25,135.04]
[1642582350738,3.0,133.45,133.27,135.04]
[1642582350937,3.0,133.45,133.32,11.2451]
[1642582351138,3.0,133.45,133.33,16.8]
[1642582351335,44.03990553,133.44,133.33,63.93446368]
[1642582351534,2.998,133.43,133.34,74.92]
[1642582351734,2.998,133.43,133.35,0.25]
[1642582351933,2.998,133.43,133.36,38.14180537]
[1642582352134,2.998,133.43,133.37,6.0]
[1642582352333,2.998,133.43,133.38,11.2448]
[1642582353132,2.998,133.43,133.39,0.25]
[1642582353333,2.998,133.43,133.38,11.2448]
[1642582353737,0.25,133.42,133.37,6.0]
[1642582353934,2.998,133.41,133.33,37.4896]
[1642582354133,45.90959155,133.4,133.32,39.40277958]
[1642582354333,45.90959155,133.4,133.32,45.40277958]
[1642582354334,2.999,133.39,133.32,45.40277958]
[1642582354733,2.999,133.39,133.33,11.2487]
[1642582355336,2.999,133.39,133.34,0.25]
[1642582355835,2.999,133.45,133.34,0.25]
[1642582356239,0.25,133.44,133.34,0.25]
[1642582356535,45.44250926,133.42,133.35,45.29422425]
[1642582356834,11.4966,133.44,133.36,0.25]
[1642582356835,2.998,133.41,133.36,0.25]
[1642582357035,2.998,133.43,133.36,15.2482]
[1642582357239,2.998,133.47,133.36,15.5082]
[1642582357636,2.998,133.47,133.37,8.99752]
[1642582357836,40.54357944,133.46,133.38,49.16784859]
[1642582358036,40.54357944,133.46,133.39,74.92]
[1642582358236,2.997,133.45,133.4,0.25]
[1642582358436,2.997,133.45,133.4,6.25]
[1642582358635,2.997,133.45,133.41,48.56559928]
[1642582359038,2.997,133.46,133.41,48.56559928]
[1642582359237,2.997,133.47,133.41,48.56559928]
[1642582359536,2.997,133.47,133.42,6.0]
[1642582360036,43.38074034,133.46,133.41,48.56559928]
[1642582360440,43.38074034,133.46,133.42,0.25]
[1642582361638,43.38074034,133.46,133.42,6.25]
[1642582362238,43.38074034,133.46,133.42,0.25]
[1642582362640,43.38074034,133.46,133.41,59.80789928]
[1642582362840,0.25,133.45,133.4,11.243]
[1642582363041,3.247,133.45,133.4,11.243]
[1642582363442,2.997,133.45,133.4,11.243]
[1642582363640,2.997,133.45,133.41,6.0]
[1642582363840,43.38074034,133.46,133.4,46.80266898]
[1642582364267,43.38074034,133.46,133.4,11.243]
[1642582365242,43.38074034,133.46,133.4,55.61682751]
[1642582366039,43.38074034,133.46,133.4,11.243]
[1642582366240,43.38074034,133.46,133.38,146.24355]
[1642582366443,43.38074034,133.46,133.39,0.25]
[1642582367441,54.62504034,133.46,133.39,0.25]
[1642582368443,54.62504034,133.46,133.39,11.4938]
[1642582368647,54.62504034,133.46,133.4,39.08328078]
[1642582369947,43.38074034,133.46,133.4,39.08328078]
[1642582370147,43.38074034,133.46,133.4,42.08028078]
[1642582370348,43.38074034,133.46,133.4,2.997]
[1642582371047,54.62514034,133.46,133.38,60.07955]
[1642582371248,0.25,133.45,133.39,0.25]
[1642582371447,3.247,133.45,133.38,8.99685]
[1642582371651,5.597,133.45,133.36,2.997]
[1642582371874,44.94383301,133.45,133.34,14.246]
[1642582372073,17.2462,133.44,133.31,10.8]
[1642582372272,3.249,133.43,133.32,2.998]
[1642582372475,5.10093301,133.43,133.32,2.998]
[1642582372673,42.92659251,133.42,133.32,49.48216459]
[1642582372874,2.999,133.41,133.33,74.92]
[1642582373073,3.249,133.41,133.33,75.17]
[1642582373577,14.498,133.41,133.33,86.4188]
[1642582373774,14.498,133.41,133.33,86.1688]
[1642582374176,14.498,133.41,133.34,0.25]
[1642582374374,0.25,133.41,133.34,0.25]
[1642582374574,45.92559251,133.42,133.34,0.25]
[1642582374775,42.92659251,133.42,133.35,2.998]
[1642582374973,42.92659251,133.42,133.35,39.07771943]
[1642582375174,54.17419251,133.42,133.35,39.07771943]
[1642582376275,54.17419251,133.42,133.36,0.25]
[1642582376478,54.17419251,133.42,133.35,39.07771943]
[1642582376680,54.17419251,133.42,133.36,0.25]
[1642582377480,56.02612552,133.42,133.36,0.25]
[1642582377684,11.4987,133.41,133.35,2.998]
[1642582377881,11.4987,133.41,133.34,2.998]
[1642582378081,11.4987,133.41,133.35,0.25]
[1642582378284,11.4987,133.41,133.34,2.998]
[1642582378484,2.999,133.4,133.33,31.69962]
[1642582378684,39.77248241,133.39,133.33,31.69962]
[1642582379484,51.02278241,133.39,133.33,9.00022]
[1642582379684,51.02278241,133.39,133.28,2.999]
[1642582379685,2.999,133.38,133.28,2.999]
[1642582379881,2.999,133.38,133.24,139.25502283]
[1642582379882,2.999,133.38,133.26,2.11108254]
[1642582380084,0.25,133.37,133.27,3.0]
[1642582380286,3.0,133.36,133.28,36.16751678]
[1642582380486,37.03610242,133.35,133.28,36.16751678]
[1642582380684,37.03610242,133.35,133.29,3.25]
[1642582380884,37.03610242,133.35,133.3,41.14640211]
[1642582381284,37.03610242,133.35,133.31,0.25]
[1642582381488,2.35,133.36,133.31,0.25]
[1642582381687,2.35,133.36,133.32,74.92]
[1642582381887,1.85193301,133.4,133.32,83.9209]
[1642582382086,1.85193301,133.4,133.33,6.25]
[1642582382285,2.999,133.42,133.33,6.25]
[1642582382286,1.85193301,133.41,133.33,15.25022]
[1642582382487,40.29586131,133.41,133.34,48.60338702]
[1642582382688,40.29586131,133.41,133.35,0.25]
[1642582382888,40.29586131,133.41,133.35,17.4971]
[1642582383089,1.85193301,133.42,133.35,17.4971]
[1642582383388,1.85193301,133.43,133.35,26.49597]
[1642582383587,1.85193301,133.43,133.36,2.998]
[1642582383787,1.85193301,133.43,133.37,0.25]
[1642582384190,46.59826372,133.42,133.36,2.998]
[1642582384392,46.59826372,133.42,133.35,8.99887]
[1642582384590,49.59626372,133.42,133.36,0.25]
[1642582384790,51.44819673,133.42,133.36,0.25]
[1642582384991,48.45019673,133.42,133.36,0.25]
[1642582385391,59.69789673,133.42,133.36,0.25]
[1642582385590,48.45019673,133.42,133.36,0.25]
[1642582386790,48.45019673,133.42,133.36,11.4964]
[1642582386998,48.45019673,133.42,133.37,49.08958624]
[1642582387892,45.95019673,133.42,133.37,49.08958624]
[1642582388093,44.09826372,133.42,133.37,49.08958624]
[1642582388594,1.85193301,133.43,133.37,49.08958624]
[1642582389598,1.85193301,133.43,133.37,60.33508624]
[1642582390294,1.85193301,133.43,133.37,11.2455]
[1642582390696,1.85193301,133.43,133.38,0.25]
[1642582391297,1.85193301,133.43,133.38,36.44959187]
[1642582391497,1.85193301,133.43,133.38,47.69419187]
[1642582391897,1.85193301,133.43,133.38,122.61419187]
[1642582392596,1.85193301,133.44,133.38,122.61419187]
[1642582393996,1.85193301,133.44,133.39,6.0]
[1642582394397,1.85193301,133.44,133.39,17.2437]
[1642582394598,1.85193301,133.44,133.39,26.23987]
[1642582394803,1.85193301,133.45,133.4,0.25]
[1642582394999,4.84993301,133.46,133.41,8.99482]
[1642582395199,2.998,133.46,133.42,3.247]
[1642582395400,1.85193301,133.47,133.41,11.99182]
[1642582395697,38.30155565,133.46,133.41,44.40035878]
[1642582396098,38.30155565,133.46,133.42,11.2414]
[1642582396299,38.30155565,133.46,133.42,11.4914]
[1642582397101,40.15348866,133.46,133.42,11.4914]
[1642582397298,38.30155565,133.46,133.42,11.4914]
[1642582399201,38.30155565,133.46,133.42,0.25]
[1642582399600,38.30155565,133.46,133.41,20.23672]
[1642582399801,43.15048866,133.46,133.41,20.23672]